fUSD/lending_fUSD_20260319
["ID","MTS","AMOUNT","RATE_DAILY","PERIOD"]
[408601499,1773927038589,-500.0,8.077e-05,2]
[408601501,1773927038598,-500.0,8.077e-05,2]
[408601503,1773927038609,-373.4415152,8.077e-05,2]
[408601505,1773927038618,-5706.31934119,8.078e-05,2]
[408601507,1773927038630,-640.14698549,8.078e-05,2]
[408601510,1773927038649,-5753.47089063,8.078e-05,2]
[408601512,1773927038668,-27708.25087186,8.078e-05,2]
[408601513,1773927038679,-13870.41528084,8.078e-05,2]
[408601555,1773927040252,-2059.10214476,8.078e-05,2]
[408601559,1773927040311,-574.56300166,8.078e-05,2]
[408601560,1773927040697,-51752.12410793,8.078e-05,2]
[408601561,1773927040708,-34653.69005842,8.078e-05,2]
[408601570,1773927043102,-11672.50999449,8.078e-05,2]
[408601571,1773927043157,-6433.63462343,8.078e-05,2]
[408601594,1773927046193,-12333.71069457,8.078e-05,2]
[408601596,1773927046205,-1194.67247834,8.078e-05,2]
[408601598,1773927046216,-12416.83169786,8.078e-05,2]
[408601603,1773927046256,-520.44892706,8.078e-05,2]
[408601605,1773927046267,-503.0,8.078e-05,2]
[408601611,1773927046371,-1381.5,8.078e-05,2]
[408601615,1773927186675,-368.4552,7.874e-05,2]
[408601616,1773927186702,-300.0,8.076e-05,2]
[408601617,1773927186728,-150.0,8.076e-05,2]
[408601618,1773927186758,-500.0,8.077e-05,2]
[408601619,1773927186788,-500.0,8.077e-05,2]
[408601620,1773927186817,-500.0,8.077e-05,2]
[408601621,1773927186849,-500.0,8.077e-05,2]
[408601622,1773927186883,-500.0,8.077e-05,2]
[408601623,1773927186915,-500.0,8.077e-05,2]
[408601624,1773927186947,-500.0,8.077e-05,2]
[408601625,1773927186976,-500.0,8.077e-05,2]
[408601626,1773927187433,-500.0,8.077e-05,2]
[408601627,1773927187467,-500.0,8.077e-05,2]
[408601628,1773927187500,-500.0,8.077e-05,2]
[408601629,1773927187532,-500.0,8.077e-05,2]
[408601630,1773927187563,-500.0,8.077e-05,2]
[408601631,1773927187597,-500.0,8.077e-05,2]
[408601632,1773927187628,-500.0,8.077e-05,2]
[408601633,1773927187660,-500.0,8.077e-05,2]
[408601634,1773927187691,-500.0,8.077e-05,2]
[408601635,1773927187722,-500.0,8.077e-05,2]
[408601636,1773927187823,-500.0,8.077e-05,2]
[408601637,1773927187856,-500.0,8.077e-05,2]
[408601638,1773927187888,-500.0,8.077e-05,2]
[408601639,1773927187923,-500.0,8.077e-05,2]
[408601640,1773927187950,-307.77077871,8.077e-05,2]
[408601641,1773927187983,-461.40331956,8.077e-05,2]
[408601642,1773927188011,-500.0,8.077e-05,2]
[408601643,1773927188040,-500.0,8.077e-05,2]
[408601644,1773927188068,-444.78820382,8.077e-05,2]
[408601645,1773927188096,-500.0,8.077e-05,2]
[408601646,1773927188124,-199.60750707,8.077e-05,2]
[408601647,1773927188184,-172.87038168,8.077e-05,2]
[408601648,1773927188210,-500.0,8.077e-05,2]
[408601649,1773927188236,-500.0,8.077e-05,2]
[408601650,1773927188263,-500.0,8.077e-05,2]
[408601651,1773927188290,-500.0,8.077e-05,2]
[408601652,1773927188318,-500.0,8.077e-05,2]
[408601653,1773927188346,-500.0,8.077e-05,2]
[408601654,1773927188373,-500.0,8.077e-05,2]
[408601655,1773927188402,-500.0,8.077e-05,2]
[408601656,1773927188429,-294.65361172,8.077e-05,2]
[408601657,1773927188456,-250.0,8.077e-05,2]
[408601658,1773927189224,-122.48788875,8.078e-05,2]
[408601659,1773927189238,-250.0,8.078e-05,2]
[408601660,1773927189252,-564.9620132,8.078e-05,2]
[408601661,1773927189266,-10000.01,8.078e-05,2]
[408601662,1773927189280,-10000.01,8.078e-05,2]
[408601663,1773927189594,-10000.01,8.078e-05,2]
[408601664,1773927189715,-10000.01,8.078e-05,2]
[408601665,1773927189860,-10000.01,8.078e-05,2]
[408601666,1773927189967,-10000.01,8.078e-05,2]
[408601677,1773927691191,5000.01,7.72e-05,2]
[408601678,1773927691213,246.771,7.72e-05,2]
[408601679,1773927691297,233.541,7.72e-05,2]
[408601682,1773928048421,200.0,7.7e-05,2]
[408601683,1773928064447,-500.0,7.8e-05,2]
[408601684,1773928174524,173.08,5.996e-05,2]
[408601700,1773928231276,-300.0,7.873e-05,2]
[408601701,1773928231286,-687.75961641,7.873e-05,2]
[408601702,1773928231298,-512.24038359,7.873e-05,2]
[408601703,1773928231308,-216.0,7.873e-05,2]
[408601704,1773928231318,-250.0,7.874e-05,2]
[408601705,1773928231328,-300.0,7.874e-05,2]
[408601706,1773928231339,-1135.37515625,7.874e-05,2]
[408601707,1773928231351,-64.62484375,7.874e-05,2]
[408601708,1773928231361,-908.21879777,7.875e-05,2]
[408601709,1773928231372,-571.68055395,7.875e-05,2]
[408601710,1773928231383,-3523.43260208,7.875e-05,2]
[408601711,1773928231392,-1065.50192028,7.877e-05,2]
[408601712,1773928231402,-874.57,7.877e-05,2]
[408601713,1773928231411,-150.0,7.877e-05,2]
[408601714,1773928231420,-90357.00665592,7.878e-05,2]
[408601715,1773928231435,-4243.1,7.878e-05,2]
[408601716,1773928231447,-439.8341472,7.878e-05,2]
[408601717,1773928231457,-1159.94357071,7.878e-05,2]
[408601718,1773928231468,-555.95984743,7.878e-05,2]
[408601719,1773928231487,-1009.784997,7.878e-05,2]
[408601720,1773928231498,-279.23785,7.878e-05,2]
[408601721,1773928231509,-1933.86916611,7.878e-05,2]
[408601722,1773928231521,-871.14161176,7.878e-05,2]
[408601723,1773928231531,-2625.65939992,7.878e-05,2]
[408601724,1773928231542,-1284.18884217,7.878e-05,2]
[408601725,1773928231553,-2772.49444839,7.878e-05,2]
[408601726,1773928231564,-2642.63241699,7.878e-05,2]
[408601727,1773928231575,-341.348914,7.878e-05,2]
[408601730,1773928231586,-3209.51724405,7.878e-05,2]
[408601743,1773928237333,-1172.96774003,7.878e-05,2]
[408601744,1773928237348,-873.39,7.878e-05,2]
[408601745,1773928237390,-6250.77960331,7.878e-05,2]
[408601746,1773928237401,-506.38888323,7.878e-05,2]
[408601747,1773928237412,-1288.52343998,7.878e-05,2]
[408601748,1773928237504,-90230.14453399,7.878e-05,2]
[408601754,1773928239674,-439.894435,7.878e-05,2]
[408601755,1773928240003,-111399.57877675,7.878e-05,2]
[408601764,1773928242353,-11907.97141597,7.878e-05,2]
[408601765,1773928242410,-4976.42433161,7.878e-05,2]
[408601772,1773928245269,-2624.72158937,7.878e-05,2]
[408601773,1773928245281,-286033.50362678,7.878e-05,2]
[408601774,1773928245329,-1498.2,7.878e-05,2]
[408601775,1773928245623,-1543.10363796,7.878e-05,2]
[408601776,1773928245667,-692.27125703,7.878e-05,2]
[408601791,1773928295268,10000.01,7.778e-05,2]
[408601792,1773928295294,10000.01,7.778e-05,2]
[408601793,1773928295323,10000.01,7.778e-05,2]
[408601794,1773928295348,10000.01,7.778e-05,2]
[408601795,1773928295372,10000.01,7.778e-05,2]
[408601796,1773928295404,10000.01,7.778e-05,2]
[408601797,1773928295446,10000.01,7.778e-05,2]
[408601798,1773928295471,10000.01,7.778e-05,2]
[408601799,1773928295496,4826.93,7.778e-05,2]
[408601801,1773928305424,-9800.01,7.778e-05,2]
[408601802,1773928305515,-10000.01,7.778e-05,2]
[408601803,1773928305635,-10000.01,7.778e-05,2]
[408601804,1773928305947,-10000.01,7.778e-05,2]
[408601805,1773928306067,-10000.01,7.778e-05,2]
[408601806,1773928306177,-10000.01,7.778e-05,2]
[408601807,1773928306304,-10000.01,7.778e-05,2]
[408601808,1773928306644,-10000.01,7.778e-05,2]
[408601811,1773928314967,-4657.26438754,7.778e-05,2]
[408601812,1773928317970,-5000.01,7.778e-05,2]
[408601813,1773928321355,-5000.01,7.778e-05,2]
[408601814,1773928323996,-5000.01,7.778e-05,2]
[408601815,1773928327221,-5000.01,7.778e-05,2]
[408601817,1773928331270,-5000.01,7.778e-05,2]
[408601818,1773928333145,-5000.01,7.778e-05,2]
[408601819,1773928336287,-5000.01,7.778e-05,2]
[408601820,1773928339250,-5000.01,7.778e-05,2]
[408601821,1773928342126,-5000.01,7.778e-05,2]
[408601822,1773928345240,-5000.01,7.778e-05,2]
[408601823,1773928348135,-5000.01,7.778e-05,2]
[408601824,1773928351430,-5000.01,7.778e-05,2]
[408601825,1773928354801,-5000.01,7.778e-05,2]
[408601826,1773928357323,-5000.01,7.778e-05,2]
[408601827,1773928360218,-5000.01,7.778e-05,2]
[408601828,1773928363373,-5000.01,7.778e-05,2]
[408601829,1773928366263,-5000.01,7.778e-05,2]
[408601830,1773928369440,-5000.01,7.778e-05,2]
[408601831,1773928372325,-5000.01,7.778e-05,2]
[408601832,1773928373047,3536.6,7.561e-05,2]
[408601833,1773928411313,5000.01,7.678e-05,2]
[408601834,1773928411339,1761.4728,7.678e-05,2]
[408601845,1773928544878,3238.5372,7.561e-05,2]
[408601846,1773928544900,5000.01,7.561e-05,2]
[408601847,1773928544922,2317.6328,7.561e-05,2]
[408601849,1773928554105,200.0,7.7e-05,2]
[408601851,1773928574135,661.4018,7.678e-05,2]
[408601857,1773928624378,200.0,7.7e-05,2]
[408601871,1773928729353,4800.01,3.681e-05,2]
[408601872,1773928729378,5000.01,3.681e-05,2]
[408601873,1773928729400,1017.46,3.681e-05,2]
[408601874,1773928729602,3982.55,3.875e-05,2]
[408601875,1773928729627,5000.01,3.875e-05,2]
[408601876,1773928729650,1834.92,3.875e-05,2]
[408601877,1773928729725,3165.09,4.069e-05,2]
[408601878,1773928729746,5000.01,4.069e-05,2]
[408601879,1773928729769,2652.38,4.069e-05,2]
[408601880,1773928729845,2347.63,4.263e-05,2]
[408601881,1773928729866,5000.01,4.263e-05,2]
[408601882,1773928729889,3469.84,4.263e-05,2]
[408601883,1773928730059,1530.17,4.456e-05,2]
[408601884,1773928730085,9287.31,4.456e-05,2]
[408601885,1773928730278,10817.48,4.65e-05,2]
[408601886,1773928730524,10817.48,4.844e-05,2]
[408601887,1773928730735,10817.48,5.038e-05,2]
[408601888,1773928730964,10817.48,5.231e-05,2]
[408601889,1773928731177,10817.48,5.425e-05,2]
[408601890,1773928731385,10817.48,5.619e-05,2]
[408601891,1773928731605,10817.48,5.813e-05,2]
[408601892,1773928731813,10817.48,6.006e-05,2]
[408601893,1773928732051,10817.48,6.2e-05,2]
[408601894,1773928732665,10817.48,6.394e-05,2]
[408601895,1773928740822,-6463.41,6.588e-05,2]
[408601896,1773928741021,-4354.07,6.588e-05,2]
[408601897,1773928741056,-1291.87,6.781e-05,2]
[408601898,1773928741139,-474.4,6.781e-05,2]
[408601899,1773928741163,-9051.21,6.781e-05,2]
[408601900,1773928741267,-10000.01,6.975e-05,2]
[408601901,1773928741369,-817.47,6.975e-05,2]
[408601902,1773928741404,-8365.07,7.169e-05,2]
[408601903,1773928741479,-2452.41,7.169e-05,2]
[408601904,1773928741518,-5095.19,7.363e-05,2]
[408601905,1773928741584,-4277.72,7.363e-05,2]
[408601906,1773928741607,-1444.57,7.363e-05,2]
[408601907,1773928742008,1208.08309607,4.36e-05,2]
[408601908,1773928742158,253.43471266,4.36e-05,2]
[408601910,1773928757525,-175.43322095,7.731e-05,2]
[408601911,1773928767902,144.56677905,7.772e-05,2]
[408601913,1773928789911,500.0,7.305e-05,2]
[408601928,1773929257674,5000.01,7.571e-05,2]
[408601929,1773929257699,5000.01,7.571e-05,2]
[408601930,1773929257727,9500.01,7.571e-05,2]
[408601931,1773929257754,10000.01,7.571e-05,2]
[408601932,1773929257779,10000.01,7.571e-05,2]
[408601933,1773929257804,10000.01,7.571e-05,2]
[408601934,1773929257828,10000.01,7.571e-05,2]
[408601935,1773929258163,10000.01,7.571e-05,2]
[408601936,1773929258191,10000.01,7.571e-05,2]
[408601937,1773929258223,10000.01,7.571e-05,2]
[408601938,1773929258248,10000.01,7.571e-05,2]
[408601939,1773929258273,10000.01,7.571e-05,2]
[408601940,1773929259780,-8538.49219127,7.571e-05,2]
[408601941,1773929264364,-10000.01,7.571e-05,2]
[408601942,1773929264486,-10000.01,7.571e-05,2]
[408601943,1773929264606,-10000.01,7.571e-05,2]
[408601944,1773929264722,-10000.01,7.571e-05,2]
[408601945,1773929264827,-10000.01,7.571e-05,2]
[408601946,1773929264943,-10000.01,7.571e-05,2]
[408601947,1773929265060,-10000.01,7.571e-05,2]
[408601948,1773929265171,-10000.01,7.571e-05,2]
[408601949,1773929265278,-10000.01,7.571e-05,2]
[408601950,1773929265399,-10000.01,7.571e-05,2]
[408601951,1773929281210,300.0,7.57e-05,2]
[408601954,1773929311912,261.40906064,7.57e-05,2]
[408601955,1773929313736,178.97673708,7.57e-05,2]
[408601956,1773929313770,421.62817908,7.57e-05,2]
[408601957,1773929313810,728.44994977,7.57e-05,2]
[408601958,1773929313861,500.0,7.57e-05,2]
[408601959,1773929313895,728.44994977,7.57e-05,2]
[408601960,1773929313938,728.44994977,7.57e-05,2]
[408601961,1773929313969,500.0,7.57e-05,2]
[408601962,1773929314011,728.44994977,7.57e-05,2]
[408601963,1773929314047,483.44806507,7.57e-05,2]
[408601964,1773929314085,728.44994977,7.57e-05,2]
[408601965,1773929314129,728.44994977,7.57e-05,2]
[408601966,1773929314162,728.44994977,7.57e-05,2]
[408601967,1773929314199,728.44994977,7.57e-05,2]
[408601968,1773929314232,728.44994977,7.57e-05,2]
[408601969,1773929314265,728.44994977,7.57e-05,2]
[408601970,1773929314298,70.04846043,7.57e-05,2]
[408601971,1773929314323,658.40148934,7.57e-05,2]
[408601972,1773929314362,728.44994977,7.57e-05,2]
[408601973,1773929314397,728.44994977,7.57e-05,2]
[408601974,1773929314439,728.44994977,7.57e-05,2]
[408601975,1773929314476,728.44994977,7.57e-05,2]
[408601976,1773929314518,728.44994977,7.57e-05,2]
[408601977,1773929314552,728.44994977,7.57e-05,2]
[408601978,1773929314589,728.44994977,7.57e-05,2]
[408601979,1773929314623,728.44994977,7.57e-05,2]
[408601980,1773929314664,728.44994977,7.57e-05,2]
[408601981,1773929314697,728.44994977,7.57e-05,2]
[408601982,1773929314738,728.44994977,7.57e-05,2]
[408601983,1773929314774,728.44994977,7.57e-05,2]
[408601984,1773929314808,600.20911342,7.57e-05,2]
[408601985,1773929314834,128.24083635,7.57e-05,2]
[408601986,1773929314868,728.44994977,7.57e-05,2]
[408601987,1773929314901,728.44994977,7.57e-05,2]
[408601988,1773929314933,728.44994977,7.57e-05,2]
[408601989,1773929314971,728.44994977,7.57e-05,2]
[408601990,1773929315008,728.44994977,7.57e-05,2]
[408601991,1773929315041,728.44994977,7.57e-05,2]
[408601992,1773929315075,728.44994977,7.57e-05,2]
[408601993,1773929315115,728.44994977,7.57e-05,2]
[408601994,1773929315173,728.44994977,7.57e-05,2]
[408601995,1773929315250,728.44994977,7.57e-05,2]
[408601996,1773929315288,728.44994977,7.57e-05,2]
[408601997,1773929315520,728.44994977,7.57e-05,2]
[408601998,1773929315562,728.44994977,7.57e-05,2]
[408601999,1773929315596,401.91981664,7.57e-05,2]
[408602000,1773929315621,326.53013313,7.57e-05,2]
[408602001,1773929315653,728.44994977,7.57e-05,2]
[408602002,1773929315688,728.44994977,7.57e-05,2]
[408602003,1773929315729,728.44994977,7.57e-05,2]
[408602004,1773929315769,728.44994977,7.57e-05,2]
[408602005,1773929318231,-728.44994977,7.57e-05,2]
[408602006,1773929318475,-728.44994977,7.57e-05,2]
[408602007,1773929318508,-728.44994977,7.57e-05,2]
[408602008,1773929318542,-728.44994977,7.57e-05,2]
[408602009,1773929318575,-728.44994977,7.57e-05,2]
[408602010,1773929318606,-728.44994977,7.57e-05,2]
[408602011,1773929321271,-552.0,7.569e-05,2]
[408602012,1773929321549,-6914.29067055,7.571e-05,2]
[408602022,1773929324315,-10000.01,7.571e-05,2]
[408602023,1773929324487,-10000.01,7.571e-05,2]
[408602024,1773929324589,-10000.01,7.571e-05,2]
[408602031,1773929338063,500.0,7.071e-05,2]
[408602032,1773929353125,-150.0,7.57e-05,2]
[408602033,1773929353149,-24.57948223,7.57e-05,2]
[408602035,1773929394686,200.0,7.5e-05,2]
[408602040,1773929431486,-151.0,7.568e-05,2]
[408602042,1773929431497,-268.3,7.57e-05,2]
[408602043,1773929431509,-7.12051777,7.57e-05,2]
[408602045,1773929431518,-300.0,7.57e-05,2]
[408602047,1773929431527,-72.87948223,7.57e-05,2]
[408602048,1773929431537,-227.12051777,7.57e-05,2]
[408602049,1773929431546,-300.0,7.57e-05,2]
[408602050,1773929431555,-852.97386302,7.57e-05,2]
[408602051,1773929431567,-347.02613698,7.57e-05,2]
[408602052,1773929431576,-214.0,7.57e-05,2]
[408602053,1773929431585,-383.46001581,7.57e-05,2]
[408602054,1773929431594,-174.47964956,7.57e-05,2]
[408602055,1773929431603,-232.18012204,7.57e-05,2]
[408602056,1773929431614,-267.81987796,7.57e-05,2]
[408602057,1773929431623,-500.0,7.57e-05,2]
[408602058,1773929431633,-500.0,7.57e-05,2]
[408602059,1773929431644,-403.04257243,7.57e-05,2]
[408602060,1773929431656,-96.95742757,7.57e-05,2]
[408602061,1773929431665,-500.0,7.57e-05,2]
[408602062,1773929431674,-492.55624567,7.57e-05,2]
[408602063,1773929431688,-7.44375433,7.57e-05,2]
[408602064,1773929431698,-213.26969385,7.57e-05,2]
[408602065,1773929431712,-849.43655183,7.571e-05,2]
[408602066,1773929431723,-4114.0,7.571e-05,2]
[408602067,1773929431734,-172695.63185277,7.571e-05,2]
[408602068,1773929431745,-252013.61270534,7.571e-05,2]
[408602069,1773929431756,-352956.07302455,7.571e-05,2]
[408602070,1773929431767,-1254.41808677,7.571e-05,2]
[408602071,1773929431778,-1555.25933657,7.571e-05,2]
[408602072,1773929431796,-732.5,7.571e-05,2]
[408602073,1773929431807,-888.63598024,7.571e-05,2]
[408602074,1773929431817,-3505.78758415,7.571e-05,2]
[408602078,1773929437583,-500.0,7.57e-05,2]
[408602079,1773929437594,-220.01455073,7.57e-05,2]
[408602080,1773929437642,-279.98544927,7.57e-05,2]
[408602081,1773929437651,-89.27958624,7.57e-05,2]
[408602082,1773929437707,-410.72041376,7.57e-05,2]
[408602083,1773929437717,-500.0,7.57e-05,2]
[408602084,1773929437728,-500.0,7.57e-05,2]
[408602085,1773929437739,-500.0,7.57e-05,2]
[408602086,1773929437749,-500.0,7.57e-05,2]
[408602087,1773929437758,-500.0,7.57e-05,2]
[408602088,1773929437767,-500.0,7.57e-05,2]
[408602089,1773929437777,-500.0,7.57e-05,2]
[408602090,1773929437787,-500.0,7.57e-05,2]
[408602091,1773929437797,-500.0,7.57e-05,2]
[408602092,1773929437807,-10430.58968109,7.571e-05,2]
[408602093,1773929437820,-275458.89778413,7.571e-05,2]
[408602094,1773929437831,-11737.65924844,7.571e-05,2]
[408602095,1773929437854,-500.0,7.57e-05,2]
[408602096,1773929437867,-1690.42,7.571e-05,2]
[408602097,1773929437894,-500.0,7.57e-05,2]
[408602099,1773929437903,-2363.17767977,7.571e-05,2]
[408602101,1773929437914,-1051.74850456,7.571e-05,2]
[408602155,1773929439728,-500.0,7.57e-05,2]
[408602156,1773929439738,-500.0,7.57e-05,2]
[408602157,1773929439747,-500.0,7.57e-05,2]
[408602158,1773929439756,-500.0,7.57e-05,2]
[408602159,1773929439766,-500.0,7.57e-05,2]
[408602160,1773929439776,-500.0,7.57e-05,2]
[408602161,1773929439786,-500.0,7.57e-05,2]
[408602162,1773929439795,-458.55108995,7.57e-05,2]
[408602163,1773929439806,-41.44891005,7.57e-05,2]
[408602164,1773929439815,-500.0,7.57e-05,2]
[408602165,1773929439825,-500.0,7.57e-05,2]
[408602166,1773929439834,-500.0,7.57e-05,2]
[408602167,1773929439843,-500.0,7.57e-05,2]
[408602168,1773929439852,-500.0,7.57e-05,2]
[408602169,1773929439861,-191.01305611,7.57e-05,2]
[408602170,1773929439871,-500.0,7.57e-05,2]
[408602171,1773929439880,-500.0,7.57e-05,2]
[408602172,1773929439891,-500.0,7.57e-05,2]
[408602173,1773929439900,-500.0,7.57e-05,2]
[408602174,1773929439910,-500.0,7.57e-05,2]
[408602175,1773929439919,-8157.85440884,7.571e-05,2]
[408602176,1773929439930,-963.42602351,7.571e-05,2]
[408602177,1773929439965,5000.01,7.289e-05,2]
[408602178,1773929439987,5000.01,7.289e-05,2]
[408602179,1773929440000,-1211.0,7.289e-05,2]
[408602185,1773929444609,-412.0,7.289e-05,2]
[408602186,1773929444627,-658.24069429,7.289e-05,2]
[408602191,1773929444797,-4396.10930571,7.289e-05,2]
[408602192,1773929444807,-657464.40628562,7.571e-05,2]
[408602193,1773929444817,-250.0,7.575e-05,2]
[408602194,1773929444826,-1928.00084781,7.575e-05,2]
[408602195,1773929444836,-250.0,7.578e-05,2]
[408602196,1773929444846,-18158.4278,7.578e-05,2]
[408602198,1773929444855,-628.1322,7.578e-05,2]
[408602199,1773929444864,-29500.03,7.671e-05,2]
[408602200,1773929444874,-1000.0,7.771e-05,2]
[408602201,1773929444884,-151.0,7.775e-05,2]
[408602202,1773929444893,-151.0,7.775e-05,2]
[408602203,1773929444902,-500.0,7.775e-05,2]
[408602204,1773929444911,-22725.49,7.776e-05,2]
[408602205,1773929444920,-3202.45,7.776e-05,2]
[408602206,1773929444929,-328.89,7.776e-05,2]
[408602207,1773929444939,-9999.99,7.776e-05,2]
[408602208,1773929444949,-299.99,7.776e-05,2]
[408602209,1773929444958,-15171.8,7.776e-05,2]
[408602210,1773929444967,-8448.51,7.776e-05,2]
[408602212,1773929444981,-14087.21,7.776e-05,2]
[408602214,1773929444990,-150.99,7.776e-05,2]
[408602216,1773929444999,-517.27,7.776e-05,2]
[408602217,1773929445010,-31741.05,7.776e-05,2]
[408602218,1773929445019,-150.99,7.776e-05,2]
[408602219,1773929445028,-9999.99,7.776e-05,2]
[408602220,1773929445038,-3671.02,7.776e-05,2]
[408602221,1773929445048,-499.99,7.776e-05,2]
[408602222,1773929445057,-9999.99,7.776e-05,2]
[408602223,1773929445066,-1568.45,7.776e-05,2]
[408602224,1773929445075,-9999.99,7.776e-05,2]
[408602225,1773929445085,-403.44,7.776e-05,2]
[408602226,1773929445094,-160.99,7.777e-05,2]
[408602227,1773929445104,-1000.0,7.777e-05,2]
[408602228,1773929445113,-1618.05,7.777e-05,2]
[408602229,1773929445124,-7966.15,7.777e-05,2]
[408602230,1773929445133,-2456.36,7.777e-05,2]
[408602231,1773929445143,-10792.75613016,7.8e-05,2]
[408602232,1773929445153,-424.0,7.839e-05,2]
[408602233,1773929445162,-195.0,7.874e-05,2]
[408602234,1773929445171,-151.0,7.875e-05,2]
[408602235,1773929445185,-344.0,7.887e-05,2]
[408602236,1773929445194,-151.0,7.897e-05,2]
[408602237,1773929445203,-160.696,7.899e-05,2]
[408602238,1773929445213,-4530.4787,7.918e-05,2]
[408602239,1773929445222,-22533.612797,7.945e-05,2]
[408602240,1773929445232,-214.0,8.055e-05,2]
[408602241,1773929445242,-15888.407955,8.178e-05,2]
[408602242,1773929445251,-151.0,8.216e-05,2]
[408602243,1773929445260,-500.0,8.219e-05,2]
[408602244,1773929445270,-500.0,8.219e-05,2]
[408602246,1773929445279,-500.0,8.219e-05,2]
[408602248,1773929445289,-299.06988742,8.219e-05,2]
[408602250,1773929445299,-2000.0,8.219e-05,2]
[408602251,1773929445308,-23557.0,8.219e-05,2]
[408602252,1773929445318,-315.32,8.219e-05,2]
[408602253,1773929445327,-500.0,8.219e-05,2]
[408602254,1773929445338,-500.0,8.297e-05,2]
[408602255,1773929445347,-500.0,8.297e-05,2]
[408602256,1773929445358,-500.0,8.297e-05,2]
[408602257,1773929445370,-250.0,8.313e-05,2]
[408602258,1773929445383,-255.0,8.327e-05,2]
[408602259,1773929445392,-420.0,8.327e-05,2]
[408602260,1773929445401,-420.0,8.327e-05,2]
[408602261,1773929445411,-420.0,8.327e-05,2]
[408602262,1773929445421,-1680.0,8.327e-05,2]
[408602263,1773929445435,-250.0,8.328e-05,2]
[408602264,1773929445445,-500.0,8.383e-05,2]
[408602265,1773929445454,-500.0,8.383e-05,2]
[408602266,1773929445463,-500.0,8.383e-05,2]
[408602267,1773929445474,-194.57847078,8.436e-05,2]
[408602268,1773929445483,-250.0,8.437e-05,2]
[408602269,1773929445492,-5000.0,8.437e-05,2]
[408602270,1773929445503,-5000.0,8.437e-05,2]
[408602271,1773929445512,-790.13779893,8.437e-05,2]
[408602272,1773929445522,-500.0,8.493e-05,2]
[408602273,1773929445532,-355.01259051,8.494e-05,2]
[408602274,1773929445541,-500.0,8.494e-05,2]
[408602275,1773929445551,-249.15761797,8.494e-05,2]
[408602276,1773929445560,-250.0,8.494e-05,2]
[408602277,1773929445569,-8565.75555911,8.494e-05,2]
[408602278,1773929445581,-250.0,8.494e-05,2]
[408602279,1773929445590,-250.0,8.494e-05,2]
[408602280,1773929445599,-250.0,8.494e-05,2]
[408602281,1773929445609,-250.0,8.494e-05,2]
[408602282,1773929445620,-500.0,8.494e-05,2]
[408602283,1773929445629,-500.0,8.494e-05,2]
[408602284,1773929445638,-500.0,8.494e-05,2]
[408602285,1773929445647,-500.0,8.494e-05,2]
[408602286,1773929445657,-500.0,8.494e-05,2]
[408602287,1773929445666,-250.0,8.494e-05,2]
[408602288,1773929445675,-500.0,8.494e-05,2]
[408602289,1773929445685,-250.0,8.494e-05,2]
[408602290,1773929445693,-500.0,8.494e-05,2]
[408602291,1773929445703,-174.61919141,8.494e-05,2]
[408602292,1773929445712,-269.00463473,8.494e-05,2]
[408602293,1773929445721,-500.0,8.494e-05,2]
[408602294,1773929445730,-500.0,8.494e-05,2]
[408602295,1773929445740,-250.0,8.494e-05,2]
[408602296,1773929445749,-265.80029316,8.494e-05,2]
[408602297,1773929445758,-500.0,8.494e-05,2]
[408602298,1773929445768,-250.0,8.494e-05,2]
[408602299,1773929445777,-500.0,8.494e-05,2]
[408602300,1773929445789,-250.0,8.494e-05,2]
[408602301,1773929445799,-250.0,8.494e-05,2]
[408602302,1773929445808,-500.0,8.494e-05,2]
[408602303,1773929445818,-500.0,8.494e-05,2]
[408602304,1773929445828,-500.0,8.494e-05,2]
[408602305,1773929445837,-500.0,8.494e-05,2]
[408602307,1773929445846,-268.15363795,8.494e-05,2]
[408602308,1773929445856,-250.0,8.494e-05,2]
[408602309,1773929445866,-250.0,8.494e-05,2]
[408602310,1773929445877,-250.0,8.494e-05,2]
[408602311,1773929445887,-250.0,8.494e-05,2]
[408602312,1773929445897,-250.0,8.494e-05,2]
[408602314,1773929445907,-151.0,8.494e-05,2]
[408602315,1773929445917,-250.0,8.494e-05,2]
[408602316,1773929445926,-669.13395939,8.494e-05,2]
[408602317,1773929445936,-500.0,8.549e-05,2]
[408602318,1773929445945,-8882.6885148,8.549e-05,2]
[408602319,1773929445954,-151.0,8.549e-05,2]